bitfinex-derivatives/quotes_ETHF0:USTF0_20250421
["timestamp","ask_amount","ask_price","bid_price","bid_amount"]
[1745232712197,22.47331,1634.2,1634.1,2.23892]
[1745232714093,28.45731,1634.2,1634.1,2.23892]
[1745232720007,23.45731,1634.2,1634.1,2.23892]
[1745232722903,19.34531,1634.2,1634.1,2.23892]
[1745232723209,23.45831,1634.2,1634.1,2.23892]
[1745232723404,19.34531,1634.2,1634.1,2.23892]
[1745232723609,23.45831,1634.2,1634.1,2.23892]
[1745232723811,19.34531,1634.2,1634.1,3.46281]
[1745232724113,23.45831,1634.2,1634.1,3.46281]
[1745232725309,16.56161,1634.2,1634.1,2.23892]
[1745232725512,19.19481,1634.2,1634.1,2.23892]
[1745232732212,23.30781,1634.2,1634.1,2.23892]
[1745232732416,19.19481,1634.2,1634.1,2.23892]
[1745232732618,23.30781,1634.2,1634.1,11.90381]
[1745232733113,19.19481,1634.2,1634.1,11.90381]
[1745232733310,13.4668,1634.2,1634.1,16.90381]
[1745232733517,9.3538,1634.2,1634.1,16.90381]
[1745232733718,13.4668,1634.2,1634.1,16.90381]
[1745232734014,6.146,1634.2,1634.1,16.90381]
[1745232735307,7.36981,1634.2,1634.1,16.90381]
[1745232735511,7.36981,1634.2,1634.1,11.90381]
[1745232735712,7.36981,1634.2,1634.1,10.67992]
[1745232737021,6.146,1634.2,1634.1,11.90381]
[1745232738020,6.146,1634.2,1634.1,16.90381]
[1745232739923,6.146,1634.2,1634.1,11.90381]
[1745232740616,7.36981,1634.2,1634.1,11.90381]
[1745232741214,6.146,1634.2,1634.1,11.90381]
[1745232741826,7.36981,1634.2,1634.1,11.90381]
[1745232742031,6.146,1634.2,1634.1,11.90381]
[1745232742233,7.36981,1634.2,1634.1,11.90381]
[1745232743631,6.146,1634.2,1634.1,11.90381]
[1745232745137,6.146,1634.2,1634.1,16.90381]
[1745232746238,6.146,1634.2,1634.1,11.90381]
[1745232747434,7.36981,1634.2,1634.1,5.01722]
[1745232747728,14.13261,1634.2,1634.1,2.23892]
[1745232748127,16.75491,1634.2,1634.1,2.23892]
[1745232750931,8.7683,1634.2,1634.1,3.46281]
[1745232751135,12.8793,1634.2,1634.1,6.34121]
[1745232751334,8.7683,1634.2,1634.1,6.34121]
[1745232755239,6.146,1634.2,1634.1,6.34121]
[1745232760640,11.6572,1634.2,1634.1,6.34121]
[1745232761345,14.4621,1634.2,1634.1,6.34121]
[1745232761647,14.4621,1634.2,1634.1,3.46281]
[1745232763052,15.68591,1634.2,1634.1,3.46281]
[1745232763248,14.4621,1634.2,1634.1,3.46281]
[1745232766846,15.68591,1634.2,1634.1,2.23892]
[1745232767749,26.66991,1634.2,1634.1,2.23892]
[1745232768050,1.22389,1634.1,1634.0,0.00919118]
[1745232768249,9.53176627,1634.1,1634.0,0.00919118]
[1745232768756,13.64276627,1634.1,1634.0,0.00919118]
[1745232769252,19.78876627,1634.1,1634.0,0.00919118]
[1745232770150,19.68869,1634.1,1634.0,0.00919118]
[1745232770955,14.68669,1634.1,1634.0,0.00919118]
[1745232771255,17.68029,1634.1,1634.0,0.00919118]
[1745232772756,23.66429,1634.1,1634.0,0.00919118]
[1745232774044,20.45649,1634.1,1634.0,0.00919118]
[1745232774245,23.66429,1634.1,1634.0,0.00919118]
[1745232774449,23.66529,1634.1,1634.0,0.00919118]
[1745232783664,19.55529,1634.1,1634.0,0.00919118]
[1745232783854,23.66529,1634.1,1634.0,0.00919118]
[1745232784768,19.55529,1634.1,1634.0,0.00919118]
[1745232784964,23.66529,1634.1,1634.0,0.00919118]
[1745232786861,19.55529,1634.1,1634.0,0.00919118]
[1745232787063,23.66529,1634.1,1634.0,0.00919118]
[1745232788467,19.55529,1634.1,1634.0,0.00919118]
[1745232788768,23.66529,1634.1,1634.0,0.00919118]
[1745232790468,17.68129,1634.1,1634.0,0.00919118]
[1745232791871,14.47349,1634.1,1634.0,0.00919118]
[1745232792172,17.68129,1634.1,1634.0,0.00919118]
[1745232792471,17.68129,1634.1,1634.0,2.89179118]
[1745232793472,13.57129,1634.1,1634.0,2.89179118]
[1745232793770,17.68129,1634.1,1634.0,2.89179118]
[1745232797671,17.68129,1634.1,1634.0,0.00919118]
[1745232798879,14.47349,1634.1,1634.0,0.00919118]
[1745232799072,17.68129,1634.1,1634.0,0.00919118]
[1745232800976,14.47349,1634.1,1634.0,0.00919118]
[1745232801175,17.68129,1634.1,1634.0,0.00919118]
[1745232802679,17.68129,1634.1,1634.0,1.23315118]
[1745232802875,17.68129,1634.1,1634.0,4.31895118]
[1745232804178,17.68129,1634.1,1634.0,3.09499118]
[1745232805071,14.47349,1634.1,1634.0,3.09499118]
[1745232805269,17.68129,1634.1,1634.0,3.09499118]
[1745232806877,17.68129,1634.1,1634.0,0.00919118]
[1745232807473,23.66529,1634.1,1634.0,0.00919118]
[1745232807774,28.76535719,1634.1,1634.0,1.18e-06]
[1745232809576,23.76535719,1634.1,1634.0,1.18e-06]
[1745232810381,23.7653527,1634.1,1634.0,1.18e-06]
[1745232811583,20.5575527,1634.1,1634.0,1.18e-06]
[1745232811880,23.7653527,1634.1,1634.0,1.18e-06]
[1745232813083,20.5575527,1634.1,1634.0,1.18e-06]
[1745232813279,23.7653527,1634.1,1634.0,1.18e-06]
[1745232813479,23.66529,1634.1,1634.0,1.18e-06]
[1745232813674,23.76534309,1634.1,1634.0,1.18e-06]
[1745232816383,23.66529,1634.1,1634.0,1.18e-06]
[1745232816880,20.66969,1634.1,1634.0,6.22396118]
[1745232817076,19.4458,1634.1,1634.0,9.04466118]
[1745232817680,15.3378,1634.1,1634.0,9.04466118]
[1745232817989,6.146,1634.1,1634.0,9.04466118]
[1745232818277,3.21699118,1634.3,1634.0,9.04466118]
[1745232818278,0.00919118,1634.3,1634.2,1.22381]
[1745232818678,0.00919118,1634.3,1634.2,6.22381]
[1745232818870,0.00919118,1634.3,1634.2,12.38021]
[1745232819074,6.15519118,1634.3,1634.2,12.38021]
[1745232824283,3.71719118,1634.3,1634.2,12.38021]
[1745232824482,0.89199118,1634.3,1634.2,12.38021]
[1745232824783,1.18e-06,1634.3,1634.2,12.38021]
[1745232826982,1.18e-06,1634.4,1634.3,1.22374]
[1745232827189,1.18e-06,1634.4,1634.3,7.54634]
[1745232827390,1.18e-06,1634.4,1634.3,12.54634]
[1745232827688,18.13127534,1635.0,1634.9,1.22329]
[1745232828086,24.27727534,1635.0,1634.9,1.22329]
[1745232828281,6.146,1635.0,1634.9,1.22329]
[1745232828476,6.146,1635.0,1634.9,4.22199]
[1745232828680,6.146,1635.0,1634.9,45.02199]
[1745232828994,7.36921,1635.0,1634.9,43.7987]
[1745232829286,12.1528,1635.0,1634.9,45.02199]
[1745232831090,15.206,1635.0,1634.9,45.02199]
[1745232831782,12.1528,1635.0,1634.9,45.02199]
[1745232833491,6.146,1635.0,1634.9,45.02199]
[1745232834091,6.146,1635.0,1634.9,48.22979]
[1745232835594,1.93038,1635.0,1634.9,57.33279]
[1745232835898,0.63411,1635.0,1634.9,57.33279]
[1745232836096,1e-05,1635.0,1634.9,57.33279]
[1745232841194,5.9584,1635.4,1635.3,1.22299]
[1745232841399,3.0421,1635.6,1635.5,1.22284]
[1745232841596,5.9882,1635.6,1635.5,1.22284]
[1745232841897,10.9882,1635.6,1635.5,42.02284]
[1745232842095,17.1342,1635.6,1635.5,40.8]
[1745232842396,18.35696,1635.6,1635.5,40.8]
[1745232843189,18.35696,1635.6,1635.5,42.02284]
[1745232844200,12.1342,1635.6,1635.5,42.02284]
[1745232847102,13.35696,1635.6,1635.5,42.02284]
[1745232849097,12.1342,1635.6,1635.5,42.02284]
[1745232849488,13.35696,1635.6,1635.5,42.02284]
[1745232854609,12.1342,1635.6,1635.5,42.02284]
[1745232856707,96.36599,1636.1,1635.5,42.02284]
[1745232856708,5.984,1636.3,1635.7,3.05673]
[1745232856910,5.7944,1636.1,1636.0,4.43026]
[1745232857099,11.9404,1636.1,1636.0,4.43026]
[1745232857300,15.1482,1636.1,1636.0,4.43026]
[1745232857500,18.1265,1636.1,1636.0,4.43026]
[1745232857903,18.1265,1636.1,1635.8,3.2078]
[1745232858106,9.3538,1636.1,1636.0,1.22246]
[1745232858410,9.3538,1636.1,1636.0,4.43026]
[1745232858606,12.3945,1636.1,1636.0,45.23026]
[1745232858900,5.984,1636.6,1636.5,1.22209]
[1745232859107,3.2078,1636.5,1636.4,1.22214]
[1745232859310,6.2485,1636.5,1636.4,1.23133118]
[1745232859514,6.2485,1636.5,1636.4,42.03133118]
[1745232860301,9.3538,1636.5,1636.4,45.04533118]
[1745232860501,9.3538,1636.5,1636.4,42.03136118]
[1745232860696,15.3378,1636.5,1636.4,40.80919118]
[1745232860900,18.3785,1636.5,1636.4,42.03136118]
[1745232862007,18.3785,1636.5,1636.4,45.04026118]
[1745232862311,12.3945,1636.5,1636.4,42.03136118]
[1745232863001,18.61659,1636.5,1636.4,40.80919118]
[1745232863204,1.22234,1636.2,1635.8,3.2078]
[1745232863402,5.9481,1636.1,1635.9,1.2225]
[1745232863604,13.3469,1636.1,1635.8,7.43926]
[1745232863805,6.1764,1636.0,1635.9,1.22254]
[1745232864205,12.3224,1636.0,1635.9,42.02254]
[1745232864400,6.146,1636.0,1635.9,42.02254]
[1745232864606,6.146,1636.0,1635.9,52.96644]
[1745232864807,0.00919118,1636.1,1636.0,1.22246]
[1745232865109,6.15519118,1636.1,1636.0,7.48456]
[1745232865507,9.36299118,1636.1,1636.0,45.23026]
[1745232865909,9.36299118,1636.1,1636.0,48.28456]
[1745232868714,9.36299118,1636.1,1636.0,42.02246]
[1745232868915,12.26439118,1636.1,1636.0,45.23026]
[1745232870817,12.26439118,1636.1,1636.0,42.02246]
[1745232871815,12.26439118,1636.1,1636.0,45.23026]
[1745232872116,12.26439118,1636.1,1636.0,48.24766]
[1745232873017,12.26439118,1636.1,1636.0,45.23026]
[1745232873213,13.48678118,1636.1,1636.0,40.8]
[1745232873614,12.26439118,1636.1,1636.0,42.02246]
[1745232873918,16.45218118,1636.1,1636.0,42.02246]
[1745232874319,16.45218118,1636.1,1636.0,40.8]
[1745232876417,16.45218118,1636.1,1636.0,42.02246]
[1745232876622,16.45218118,1636.1,1636.0,40.8]
[1745232877821,16.45218118,1636.1,1636.0,42.02246]
[1745232878025,15.22979118,1636.1,1636.0,42.02246]
[1745232878218,16.45218118,1636.1,1636.0,40.8]
[1745232879421,15.22979118,1636.1,1636.0,42.02246]
[1745232880125,16.45218118,1636.1,1636.0,40.8]
[1745232886831,3.0566,1635.8,1635.4,1.22285]
[1745232887127,5.7731,1635.7,1635.4,45.23064]
[1745232887331,1.22284,1635.5,1635.4,45.23064]
[1745232887733,4.43064,1635.5,1635.4,45.23064]
[1745232888031,7.36694,1635.5,1635.4,45.23064]
[1745232888234,13.51294,1635.5,1635.4,45.23064]
[1745232888437,13.51294,1635.5,1635.4,44.0078]
[1745232888637,13.51294,1635.5,1635.4,40.8]
[1745232891233,13.51294,1635.5,1635.4,42.02291]
[1745232891626,12.2901,1635.5,1635.4,42.02291]
[1745232892232,13.51294,1635.5,1635.4,42.02291]
[1745232892634,13.51294,1635.5,1635.4,40.8]
[1745232894730,13.51294,1635.5,1635.4,42.02291]
[1745232894934,13.51294,1635.5,1635.4,44.99731]
[1745232895830,13.51294,1635.5,1635.4,48.20511]
[1745232897139,13.51294,1635.5,1635.4,46.9822]
[1745232897338,13.51294,1635.5,1635.4,48.20511]
[1745232897637,13.51294,1635.5,1635.4,46.9822]
[1745232897838,13.51294,1635.5,1635.4,48.20511]
[1745232898239,13.51294,1635.5,1635.4,51.22661]
[1745232899040,13.51294,1635.5,1635.4,50.0037]
[1745232900142,10.57664,1635.5,1635.4,51.22661]
[1745232900334,10.57664,1635.5,1635.4,50.0037]
[1745232900531,13.66654,1635.5,1635.4,50.0037]
[1745232901141,13.66654,1635.5,1635.4,51.22661]
[1745232901441,12.4437,1635.5,1635.4,51.22661]
[1745232901741,9.3538,1635.5,1635.4,51.22661]
[1745232903642,3.69880882,1635.5,1635.4,56.22661]
[1745232907742,3.32960882,1635.5,1635.4,56.22661]
[1745232908236,1.32680882,1635.5,1635.4,56.22661]
[1745232908542,8.9278,1636.0,1635.9,1.22254]
[1745232909045,9.2896,1636.0,1635.9,1.22254]
[1745232909340,15.4356,1636.0,1635.9,42.02254]
[1745232909542,9.3538,1636.0,1635.9,45.16334]
[1745232910041,6.146,1636.0,1635.9,45.16334]
[1745232910437,9.3538,1636.0,1635.9,45.16334]
[1745232910639,12.32,1636.0,1635.9,40.8]
[1745232910843,19.40666,1636.0,1635.9,40.8]
[1745232911442,9.3538,1636.0,1635.9,40.8]
[1745232911644,19.61256,1636.0,1635.9,42.02254]
[1745232911945,18.3901,1636.0,1635.9,42.02254]
[1745232913048,9.3538,1636.0,1635.9,42.02254]
[1745232913248,9.3538,1636.0,1635.9,48.07984]
[1745232913439,9.3538,1636.0,1635.9,50.96134]
[1745232921554,6.146,1636.0,1635.9,60.09434]
[1745232922550,6.146,1636.0,1635.9,55.09434]
[1745232923658,6.146,1636.0,1635.9,55.09434]
[1745232923847,9.3538,1636.0,1635.9,55.09434]
[1745232924049,12.4741,1636.0,1635.9,55.09434]
[1745232924255,9.3538,1636.0,1635.9,55.09434]
[1745232925553,12.3586,1636.0,1635.9,55.09434]
[1745232928752,9.1508,1636.0,1635.9,55.09434]
[1745232929365,9.1508,1636.0,1635.9,58.30214]
[1745232929863,12.3586,1636.0,1635.9,58.30214]
[1745232930764,12.3586,1636.0,1635.9,55.42064]
[1745232930962,18.1416,1636.0,1635.9,55.42064]
[1745232931163,15.1983,1636.0,1635.9,55.42064]
[1745232931865,12.3586,1636.0,1635.9,55.42064]
[1745232933965,15.2083,1636.0,1635.9,55.42064]
[1745232935561,15.2083,1636.0,1635.9,49.36334]
[1745232935864,15.2083,1636.0,1635.9,45.23034]
[1745232937761,20.2083,1636.0,1635.9,45.23034]
[1745232940067,15.2083,1636.0,1635.9,45.23034]
[1745232943773,9.3538,1636.0,1635.9,45.23034]
[1745232944874,12.3597,1636.0,1635.9,45.23034]
[1745232945075,12.3597,1636.0,1635.9,48.34914]
[1745232945476,9.3538,1636.0,1635.9,48.34914]
[1745232946576,6.146,1636.0,1635.9,48.34914]
[1745232947676,9.3538,1636.0,1635.9,48.34914]
[1745232948067,9.3538,1636.0,1635.9,45.23034]
[1745232949176,9.3538,1636.0,1635.9,48.10014]
[1745232950669,6.146,1636.0,1635.9,48.10014]
[1745232952680,3.08881225,1636.0,1635.9,48.10014]
[1745232957977,0.0316245,1636.0,1635.9,48.10014]
[1745232959075,0.00919118,1636.1,1636.0,1.22246]
[1745232959277,3.21699118,1636.1,1636.0,7.27946]
[1745232959577,1.80019118,1636.1,1636.0,10.29086]
[1745232960177,7.94619118,1636.1,1636.0,10.29086]
[1745232966187,4.88371,1636.1,1636.0,10.29086]
[1745232969288,3.61316,1636.1,1636.0,10.29086]
[1745232969490,2.342,1636.1,1636.0,10.29086]
[1745232971889,0.65401,1636.1,1636.0,10.29086]
[1745232972090,0.00919118,1636.2,1636.1,1.22239]
[1745232972291,1.80938236,1636.2,1636.1,11.38619]
[1745232973091,7.95538236,1636.2,1636.1,11.38619]
[1745232973291,6.146,1636.2,1636.1,11.38619]
[1745232973490,2.35743,1636.2,1636.1,11.38619]
[1745232973790,3.0768,1636.4,1636.3,1.22224]
[1745232973992,3.0768,1636.4,1636.3,4.43004]
[1745232974288,9.62356236,1636.4,1636.3,4.43004]
[1745232978493,12.82086236,1636.4,1636.3,4.43004]
[1745232984894,12.82086236,1636.4,1636.3,1.22224]
[1745232985095,12.82086236,1636.4,1636.3,4.43004]
[1745232988794,21.02866236,1636.4,1636.2,0.00919118]
[1745232989091,21.02866236,1636.4,1635.9,51.98129401]
[1745232989092,3.28806236,1636.3,1635.9,51.98129401]
[1745232989296,3.28806236,1636.3,1636.1,1.22235]
[1745232989297,7.38506236,1636.3,1636.1,1.22235]
[1745232989594,3.28586236,1636.2,1636.1,1.22235]
[1745232989892,6.46956236,1636.2,1636.0,1.22242]
[1745232990091,3.55366236,1636.1,1636.0,1.23161118]
[1745232990290,6.73736236,1636.1,1636.0,1.23161118]
[1745232991184,12.88336236,1636.1,1636.0,1.23161118]
[1745232993991,12.88336236,1636.1,1636.0,4.43941118]
[1745232994389,12.88336236,1636.1,1636.0,1.23161118]
[1745232999100,12.88336236,1636.1,1636.0,4.43941118]
[1745233000399,6.54676236,1636.1,1636.0,11.53951118]
[1745233000704,9.0697,1636.4,1636.3,1.22224]
[1745233001201,15.2157,1636.4,1636.3,1.22224]
[1745233004303,15.2157,1636.4,1636.3,4.24754]
[1745233005096,15.2157,1636.4,1636.3,7.44544]
[1745233005297,15.2157,1636.4,1636.3,10.57074]
[1745233005510,6.146,1636.4,1636.3,10.57074]
[1745233005804,6.146,1636.4,1636.3,14.66774]
[1745233006900,6.146,1636.4,1636.3,17.87554]
[1745233011012,6.146,1636.4,1636.3,11.55234]
[1745233011310,6.146,1636.4,1636.3,8.52704]
[1745233019918,6.146,1636.4,1636.3,5.31924]
[1745233020113,6.146,1636.4,1636.3,8.52704]
[1745233026220,6.146,1636.4,1636.3,5.31924]
[1745233027117,11.146,1636.4,1636.3,1.22224]
[1745233028915,6.146,1636.4,1636.3,1.22224]
[1745233036627,9.2864,1636.4,1636.3,1.22224]
[1745233042931,10.50857,1636.4,1636.3,1.22224]
[1745233047622,9.2864,1636.4,1636.3,1.22224]
[1745233048028,10.50857,1636.4,1636.2,4.42047]
[1745233048325,9.3051,1636.3,1636.2,4.42047]
[1745233048635,9.3051,1636.3,1636.2,1.22227]
[1745233049136,15.4511,1636.3,1636.2,1.22227]
[1745233051530,15.4511,1636.3,1636.2,1.22232]
[1745233054133,15.4511,1636.3,1636.1,7.62835]
[1745233054334,3.0642,1636.2,1636.1,7.62835]
[1745233055137,9.2102,1636.2,1636.1,7.62835]
[1745233058742,9.2102,1636.2,1636.1,4.42055]
[1745233059642,9.2102,1636.2,1636.1,5.16703343]
[1745233062650,9.2102,1636.2,1636.1,1.96883343]
[1745233064342,9.2102,1636.2,1636.1,0.74648343]
[1745233064543,15.1942,1636.2,1636.1,0.74648343]
[1745233064744,16.41652,1636.2,1636.1,0.74648343]
[1745233065043,19.2892,1636.2,1636.1,0.74648343]
[1745233065345,20.51152,1636.2,1636.1,0.74648343]
[1745233065645,25.51152,1636.2,1636.0,1.23163118]
[1745233065947,6.2595,1636.1,1636.0,1.23163118]
[1745233067149,12.4055,1636.1,1636.0,1.23163118]
[1745233071756,6.146,1636.1,1636.0,1.23163118]
[1745233071950,6.146,1636.1,1636.0,10.59273118]
[1745233072250,6.146,1636.1,1636.0,11.33823312]
[1745233095570,6.146,1636.1,1636.0,11.55912412]
[1745233096165,6.146,1636.1,1636.0,14.76692412]
[1745233101168,2.06976201,1636.1,1636.0,19.76692412]
[1745233101374,3.04289118,1636.5,1636.4,1.22217]
[1745233101976,3.04289118,1636.5,1636.4,1.96838199]
[1745233102169,9.18889118,1636.5,1636.4,1.96838199]
[1745233103980,9.18889118,1636.5,1636.4,8.38328199]
[1745233104680,6.15519118,1636.5,1636.4,8.38328199]
[1745233107471,6.15519118,1636.5,1636.4,5.20788199]
[1745233107779,9.30099118,1636.5,1636.4,1.96838199]
[1745233108777,9.30099118,1636.5,1636.4,1.22217]
[1745233110775,12.32839118,1636.5,1636.4,1.22217]
[1745233110981,17.32839118,1636.5,1636.4,1.443061]
[1745233112080,12.32839118,1636.5,1636.4,1.443061]
[1745233114281,15.53619118,1636.5,1636.4,1.443061]
[1745233120785,12.32839118,1636.5,1636.4,1.443061]
[1745233125589,12.32839118,1636.5,1636.4,2.18868257]
[1745233126192,12.32839118,1636.5,1636.4,5.15508257]
[1745233126696,12.32839118,1636.5,1636.4,45.95508257]
[1745233127496,12.32839118,1636.5,1636.4,42.98868257]
[1745233128497,12.32839118,1636.5,1636.4,45.96648257]
[1745233130306,6.15519118,1636.5,1636.4,42.98868257]
[1745233130492,11.33039118,1636.5,1636.4,42.98868257]
[1745233133100,8.68829118,1636.5,1636.4,42.98868257]
[1745233133290,8.68829118,1636.5,1636.4,45.71918257]
[1745233135992,8.68829118,1636.5,1636.4,42.98868257]
[1745233136604,8.68829118,1636.5,1636.4,50.82628257]
[1745233136605,6.15519118,1636.5,1636.4,50.82628257]
[1745233147609,6.15519118,1636.5,1636.4,50.080661]
[1745233149010,6.15519118,1636.5,1636.4,47.519461]
[1745233149310,8.79849118,1636.5,1636.4,44.822361]
[1745233150410,8.79849118,1636.5,1636.4,42.243061]
[1745233150812,6.15519118,1636.5,1636.4,45.005961]
[1745233151310,8.79319118,1636.5,1636.4,45.005961]
[1745233154014,8.79319118,1636.5,1636.4,42.243061]
[1745233157113,8.79319118,1636.5,1636.4,41.020891]
[1745233157307,13.79319118,1636.5,1636.4,41.020891]
[1745233157509,11.01159118,1636.5,1636.4,42.243061]
[1745233163520,11.01159118,1636.5,1636.4,44.644661]
[1745233167330,6.15519118,1636.5,1636.4,44.644661]
[1745233167717,6.15519118,1636.5,1636.4,45.39817492]
[1745233169226,6.15519118,1636.5,1636.4,50.39817492]
[1745233170718,6.15519118,1636.5,1636.4,45.39817492]
[1745233172728,8.55569118,1636.5,1636.4,45.39817492]
[1745233175327,8.55569118,1636.5,1636.4,42.99657492]
[1745233175519,10.89849118,1636.5,1636.4,42.99657492]
[1745233176222,10.89849118,1636.5,1636.4,45.32017492]
[1745233179431,10.89849118,1636.5,1636.4,48.52797492]
[1745233183738,10.89849118,1636.5,1636.4,45.32017492]
[1745233183940,10.89849118,1636.5,1636.4,48.52797492]
[1745233185443,10.89849118,1636.5,1636.4,48.54247492]
[1745233188749,10.89849118,1636.5,1636.4,45.33467492]
[1745233188946,10.89849118,1636.5,1636.4,48.54247492]
[1745233189643,10.89849118,1636.5,1636.4,45.33467492]
[1745233189843,10.89849118,1636.5,1636.4,48.54247492]
[1745233190146,10.89849118,1636.5,1636.4,46.21887492]
[1745233190343,10.89849118,1636.5,1636.4,41.78890492]
[1745233190549,10.89849118,1636.5,1636.4,2.21107492]
[1745233190945,10.89849118,1636.5,1636.4,1.457561]
[1745233200754,6.15519118,1636.5,1636.4,1.457561]
[1745233200943,6.15519118,1636.5,1636.4,4.665361]
[1745233201247,4.74248118,1636.5,1636.4,50.465361]
[1745233201553,13.1525,1637.0,1636.8,1.2218]
[1745233201751,8.39022,1637.0,1636.7,3.2078]
[1745233202052,8.39022,1637.0,1636.8,1.22185]
[1745233202254,14.53622,1637.0,1636.7,4.42967]
[1745233202449,3.2078,1636.8,1636.4,41.020891]
[1745233202656,1.22209,1636.5,1636.4,0.220891]
[1745233202955,3.1933,1636.6,1636.5,1.22209]
[1745233203251,8.2658,1636.6,1636.5,42.02209]
[1745233203456,8.2658,1636.6,1636.5,44.12969]
[1745233203955,8.2658,1636.6,1636.5,40.8]
[1745233204552,8.2658,1636.6,1636.5,42.02209]
[1745233204744,8.2658,1636.6,1636.5,40.8]
[1745233204945,8.2658,1636.6,1636.5,42.02209]
[1745233206051,8.2658,1636.6,1636.5,40.8]
[1745233206358,8.2658,1636.6,1636.5,42.02209]
[1745233206555,8.2658,1636.6,1636.5,40.8]
[1745233206754,8.2658,1636.6,1636.5,42.02209]
[1745233207364,8.2658,1636.6,1636.5,40.8]
[1745233207650,8.2658,1636.6,1636.5,42.02209]
[1745233208359,9.48782,1636.6,1636.5,40.8]
[1745233209049,14.48782,1636.6,1636.5,40.8]
[1745233209754,20.47182,1636.6,1636.5,40.8]
[1745233210552,15.47182,1636.6,1636.5,40.8]
[1745233210953,15.47182,1636.6,1636.5,42.02209]
[1745233211357,15.47182,1636.6,1636.5,40.8]
[1745233216960,1.22209,1636.5,1636.4,0.220891]
[1745233217263,18.56709,1636.5,1636.4,0.220891]
[1745233217557,18.56709,1636.5,1635.7,12.18741602]
[1745233217558,1.22261,1635.8,1635.7,12.18741602]
[1745233217862,8.51141,1635.8,1635.7,12.18741602]
[1745233218062,8.51141,1635.8,1635.7,52.98741602]
[1745233218252,14.65741,1635.8,1635.7,52.98741602]
[1745233218448,19.65741,1635.8,1635.7,12.18741602]
[1745233218654,18.65021,1635.8,1635.7,12.18741602]
[1745233221355,18.65021,1635.8,1635.6,40.80919118]
[1745233221356,1.22269,1635.7,1635.6,40.80919118]
[1745233221554,9.3538,1635.8,1635.7,1.22269]
[1745233221862,9.3538,1635.8,1635.7,3.19939]
[1745233223963,9.3538,1635.8,1635.7,1.9767]
[1745233224166,9.3538,1635.8,1635.7,3.19939]
[1745233224554,9.3538,1635.8,1635.7,1.9767]
[1745233224767,10.57641,1635.8,1635.7,1.9767]
[1745233225068,9.3538,1635.8,1635.7,1.9767]
[1745233226463,9.3538,1635.8,1635.7,3.19939]
[1745233226767,9.3538,1635.8,1635.7,8.19939]
[1745233228066,9.3538,1635.8,1635.7,3.19939]
[1745233229269,6.146,1635.8,1635.7,3.19939]
[1745233229468,6.146,1635.8,1635.7,8.19939]
[1745233230766,6.146,1635.8,1635.7,3.19939]
[1745233230968,6.146,1635.8,1635.7,1.22269]
[1745233231173,6.146,1635.8,1635.7,8.15519]
[1745233232071,6.146,1635.8,1635.7,3.15519]
[1745233235569,6.146,1635.8,1635.6,44.04463118]
[1745233235778,3.8702,1635.7,1635.6,42.03195118]
[1745233235967,3.8702,1635.7,1635.6,40.80919118]
[1745233236283,10.0162,1635.7,1635.6,40.80919118]
[1745233236469,10.0162,1635.7,1635.6,42.03195118]
[1745233236870,11.23889,1635.7,1635.6,40.80919118]
[1745233237069,10.0162,1635.7,1635.6,40.80919118]
[1745233237367,11.23889,1635.7,1635.6,40.80919118]
[1745233238180,10.0162,1635.7,1635.6,40.80919118]
[1745233238473,11.23889,1635.7,1635.6,40.80919118]
[1745233238977,11.23889,1635.7,1635.6,42.03195118]
[1745233239180,11.23889,1635.7,1635.6,40.80919118]
[1745233239476,11.23889,1635.7,1635.6,42.03195118]
[1745233239674,10.0162,1635.7,1635.6,42.03195118]
[1745233240072,6.146,1635.7,1635.6,42.03195118]
[1745233240567,6.146,1635.7,1635.6,44.01845118]
[1745233241278,6.146,1635.7,1635.6,45.89855118]
[1745233247480,8.1592,1635.7,1635.6,45.89855118]
[1745233248885,8.1592,1635.7,1635.6,42.03195118]
[1745233249183,10.1412,1635.7,1635.6,42.03195118]
[1745233250176,10.1412,1635.7,1635.6,40.80919118]
[1745233250885,10.1412,1635.7,1635.6,42.03195118]
[1745233256204,10.1412,1635.7,1635.6,40.80919118]
[1745233256449,10.1412,1635.7,1635.6,42.03195118]
[1745233262999,15.1412,1635.7,1635.6,42.03195118]
[1745233263302,16.36389,1635.7,1635.6,42.03195118]
[1745233263497,10.1412,1635.7,1635.6,42.03195118]
[1745233264903,11.36389,1635.7,1635.6,42.03195118]
[1745233265903,11.40719,1635.7,1635.6,42.03195118]
[1745233266099,11.40719,1635.7,1635.6,40.80919118]
[1745233266405,11.40719,1635.7,1635.6,42.03195118]
[1745233266806,10.1845,1635.7,1635.6,42.03195118]
[1745233267400,11.40719,1635.7,1635.6,42.03195118]
[1745233267606,11.40719,1635.7,1635.6,40.80919118]
[1745233269109,16.40719,1635.7,1635.6,40.80919118]
[1745233271506,22.39119,1635.7,1635.6,40.80919118]
[1745233272009,22.39119,1635.7,1635.6,0.00919118]
[1745233273397,3.05697,1635.6,1635.0,3.05801]
[1745233273712,1.22312,1635.2,1635.1,1.22311]
[1745233273902,7.20712,1635.2,1635.1,42.02311]
[1745233274211,21.24192,1635.2,1635.1,42.02311]
[1745233275105,21.24192,1635.2,1635.1,40.8]
[1745233276610,23.28552,1635.2,1635.1,40.8]
[1745233281515,23.28552,1635.2,1635.1,42.02314]
[1745233281716,20.0621,1635.2,1635.1,43.87994]
[1745233282018,16.2523,1635.2,1635.1,43.87994]
[1745233282213,12.1733,1635.2,1635.1,43.87994]
[1745233283216,6.1893,1635.2,1635.1,43.87994]
[1745233283414,6.1893,1635.2,1635.1,48.87994]
[1745233283619,3.2078,1635.5,1635.4,1.22291]
[1745233283816,12.36034,1635.7,1635.5,1.22284]
[1745233284118,18.50634,1635.7,1635.5,1.22284]
[1745233284306,20.46054,1635.7,1635.6,2.0011]
[1745233288917,20.46049,1635.7,1635.6,2.0011]
[1745233289114,15.3378,1635.7,1635.6,3.22386]